Cogmind - Beta 12 @@@ ROGUE MODE // 2023.07.07 @ 15:32:20 Player: ZOT Result: Destroyed by G-47 Trooper with Particle Gun Performance ------------- Evolutions (2) 1000 Regions Visited (4) 800 Robots Destroyed (16) 80 Value Destroyed (320) 320 Prototype IDs (0) 0 Alien Tech Used (0) 0 Bonus (0) 0 TOTAL SCORE: 2200 Bonus ------- None Cogmind --------- Core Integrity 0/550 Matter 267/300 Energy 12/100 System Corruption 4% Temperature Cool (9) Movement Core (250) Ox4 Location -8/Materials Parts ------- > --- POWER (1) -------- (None) > --- PROPULSION (5) --- (None) > --- UTILITY (3) ------ Improved Shield Generator > --- WEAPON (2) ------- Gatling Laser Plasma Cannon > --- INVENTORY (5) ---- Light Ion Engine Reaction Control System Beam Rifle Advanced Beam Cannon Light Assault Rifle Peak State ------------ > --- POWER ------------ Light Nuclear Core > --- PROPULSION ------- Aluminum Leg Aluminum Leg Flight Unit Flight Unit > --- UTILITY ---------- Medium Storage Unit Weight Redist. System Seismic Detector > --- WEAPON ----------- Katana > --- INVENTORY -------- Ion Engine Light Ion Engine Improved Signal Interpreter Improved Terrain Scanner Transport Network Coupler Reaction Control System Beam Rifle Advanced Beam Cannon Advanced Beam Cannon Light Assault Rifle [Rating: 16] Favorites ----------- Power Ion Engine Engine Ion Engine Power Core Light Nuclear Core Propulsion Aluminum Leg Leg Aluminum Leg Flight Unit Flight Unit Utility Seismic Detector Device Seismic Detector Storage Small Storage Unit Weapon Small Laser Energy Gun Small Laser Energy Cannon Plasma Cannon Slashing Weapon Katana Build | -11 -10 -9 -9 -8 ------- Run | Jun Mat Mat Min Mat Slots Evolved 4 | . . 2 . 2 Power . | . . . . . Propulsion 3 | . . 1 . 2 Utility 1 | . . 1 . . Weapon . | . . . . . Parts Attached 32 | 6 1 6 1 18 Power 6 | 1 . 1 . 4 Engine 4 | 1 . 1 . 2 Core 2 | . . . . 2 Reactor . | . . . . . Propulsion 13 | 2 . 1 1 9 Treads . | . . . . . Leg 8 | 2 . . . 6 Wheel . | . . . . . Hover . | . . . . . Flight 5 | . . 1 1 3 Utility 7 | 2 . 3 . 2 Device 5 | 1 . 2 . 2 Storage 2 | 1 . 1 . . Processor . | . . . . . Hackware . | . . . . . Protection . | . . . . . Artifact . | . . . . . Weapon 6 | 1 1 1 . 3 Energy Gun 4 | 1 1 1 . 1 Energy Cannon 1 | . . . . 1 Ballistic Gun . | . . . . . Ballistic Cannon . | . . . . . Launcher . | . . . . . Special Weapon . | . . . . . Impact Weapon . | . . . . . Slashing Weapon 1 | . . . . 1 Piercing Weapon . | . . . . . Special Melee Weapon . | . . . . . Unidentified Prototypes . | . . . . . Parts Lost 15 | . 1 . . 14 Power 3 | . . . . 3 Propulsion 9 | . . . . 9 Utility 2 | . . . . 2 Weapon 1 | . 1 . . . Highest Loss Streak 12 | . 1 . . 12 To Critical Strikes . | . . . . . Average Slot Usage (%) 80 | . 98 77 100 63 Engine 8 | . 14 9 11 4 Leg 19 | . 28 22 22 11 Flight 7 | . . . 11 14 Device 17 | . 14 20 22 12 Storage 10 | . 14 11 11 7 Energy Gun 14 | . 26 13 22 5 Slashing Weapon 1 | . . . . 5 Naked Turns 14 | . . . . 14 Heaviest Build 21 | 13 14 21 21 20 Greatest Support 46 | 20 20 20 20 46 Greatest Overweight (x) 4 | . . 1 1 4 Average Overweight (x) . | . . . 1 . Largest Inventory Capacity 10 | 8 8 10 10 10 Average Capacity 8 | 6 8 8 10 9 Most Carried 10 | 7 6 10 10 10 Average Carried 7 | 3 6 6 9 9 Final Capacity 10 | 8 8 10 10 5 Final Carried 10 | 7 6 10 10 5 Class Distribution -------------------- 57% | Mutant 42% | Scavenger-Mutant Dominant Class ---------------- Mutant | -10/Materials Mutant | -9/Materials Scavenger-Mutant | -9/Mines Scavenger-Mutant | -8/Materials Resources | -11 -10 -9 -9 -8 ----------- Run | Jun Mat Mat Min Mat Matter Collected 435 | 260 . 65 10 100 Remotely . | . . . . . Salvage Created 557 | 149 . . 53 355 Parts 22 | 5 . . 5 12 Haulers Intercepted . | . . . . . Recyclers Shooed 1 | . . . 1 . Parts Field Recycled . | . . . . . Retrieved Matter . | . . . . . Parts Self-Destructed . | . . . . . Prevented . | . . . . . Kills | -11 -10 -9 -9 -8 ------- Run | Jun Mat Mat Min Mat Combat Hostiles Destroyed 12 | . . . 3 9 Melee 8 | . . . . 8 Guns 4 | . . . 3 1 Classes Destroyed 5 | 2 . . 1 2 Tunneler 2 | 2 . . . . Recycler 2 | 1 . . . 1 Swarmer 7 | . . . 3 4 Grunt 4 | . . . . 4 Brawler 1 | . . . . 1 Best Kill Streak 5 | 2 . . 3 5 Combat Bots Only 4 | . . . 3 4 Max Kills in Single Turn 1 | 1 . . 1 1 Gunslinging . | . . . . . Exploded . | . . . . . Melee 1 | . . . . 1 Uniques/NPCs Destroyed . | . . . . . Combat | -11 -10 -9 -9 -8 -------- Run | Jun Mat Mat Min Mat Damage Taken 1899 | 34 75 . 258 1532 Core 617 | . . . 67 550 Absorbed by Shields 13 | . . . . 13 Regen/Repaired (Parts) 29 | . . 29 . . Core Remaining (%) 94 | 100 100 . 83 . Volleys Fired 26 | 9 2 2 7 6 Largest 2 | 1 2 2 2 2 Hottest 96 | 40 80 96 96 96 Shots Fired 42 | 9 4 3 14 12 Gun 42 | 9 4 3 14 12 Cannon . | . . . . . Launcher . | . . . . . Special . | . . . . . Kinetic . | . . . . . Thermal 31 | . 2 3 14 12 Explosive . | . . . . . Electromagnetic 11 | 9 2 . . . Robot Hit Streak 5 | 5 1 1 4 5 Robot Miss Streak 4 | 2 2 1 2 4 Penetration Max . | . . . . . Secondary Targets . | . . . . . Shots Hit Robots 38 | 7 1 2 6 22 Core Hits 14 | 3 . . 3 8 Critical Kills . | . . . . . Critical Parts Destroyed . | . . . . . Critical Strikes 1 | . . . . 1 Sever 1 | . . . . 1 Melee Attacks 26 | . . . . 26 Impact . | . . . . . Slashing 26 | . . . . 26 Piercing . | . . . . . Sneak Attacks 2 | . . . . 2 Combat Hostiles 1 | . . . . 1 Follow-up Attacks . | . . . . . Damage Inflicted 870 | 128 12 26 66 638 Guns 290 | 96 12 26 66 90 Cannons . | . . . . . Explosions 32 | 32 . . . . Melee 544 | . . . . 544 Ramming 4 | . . . . 4 Kinetic . | . . . . . Thermal 226 | 32 12 26 66 90 Explosive . | . . . . . Electromagnetic 96 | 96 . . . . Impact . | . . . . . Slashing 544 | . . . . 544 Piercing . | . . . . . Highest Corruption 4 | . . . . 4 Average Corruption 4 | . . . . 4 Corruption Purged . | . . . . . Corruption Blocked . | . . . . . Effects 3 | . . . . 3 Matter Fused 1 | . . . . 1 Energy Discharges 1 | . . . . 1 Data Loss (minor) 1 | . . . . 1 Overload Shots . | . . . . . Overflow Damage 53 | . . . . 53 Projectiles . | . . . . . Explosions . | . . . . . Melee 53 | . . . . 53 Knockbacks . | . . . . . Impact . | . . . . . Kinetic . | . . . . . Secondary . | . . . . . Self-Inflicted Damage 36 | 34 . . . 2 Shots 1 | 1 . . . . Rammed 1 | . . . . 1 Targets Rammed 1 | . . . . 1 Kicked . | . . . . . Crushed . | . . . . . Highest Temperature 141 | 12 18 27 135 141 Average Temperature 52 | 12 11 15 57 65 Received Heat Transfer 678 | . 60 . 6 612 Siege Activations . | . . . . . Robots Corrupted . | . . . . . Combat Hostiles . | . . . . . Parts Fried 1 | 1 . . . . Impact Corruptions . | . . . . . Robots Melted . | . . . . . Combat Hostiles . | . . . . . Parts Melted 1 | . . . . 1 Heat Transferred 510 | 50 25 62 162 211 Parts Sabotaged . | . . . . . Parts Stolen . | . . . . . Parts Stripped . | . . . . . Power Chain Reactions 1 | 1 . . . . Missiles Intercepted . | . . . . . Alert | -11 -10 -9 -9 -8 ------- Run | Jun Mat Mat Min Mat Peak Influence 297 | 15 32 9 88 297 Initial 33 | . 9 9 3 33 Average 63 | 8 20 9 70 162 Maximum Alert Level 1 | . . . . 1 Low Security (%) 86 | 100 100 100 100 52 Level 1 13 | . . . . 47 Level 2 . | . . . . . Level 3 . | . . . . . Level 4 . | . . . . . Level 5 . | . . . . . High Security . | . . . . . Max Security . | . . . . . Squads Dispatched 4 | . 1 . . 3 Investigation 1 | . . . . 1 Extermination . | . . . . . Reinforcement 3 | . 1 . . 2 Assault . | . . . . . Garrison . | . . . . . Intercept . | . . . . . Searches Triggered . | . . . . . Construction Impeded . | . . . . . Haulers Reinforced . | . . . . . Active Scanning Responses . | . . . . . Cargo Convoy Interrupts . | . . . . . Stealth | -11 -10 -9 -9 -8 --------- Run | Jun Mat Mat Min Mat Distress Signals 2 | . 1 . . 1 Communications Jammed . | . . . . . Distress Signals . | . . . . . Times Spotted 44 | . 8 1 5 30 Peak Tracking Total 10 | . 6 2 3 10 Tactical Retreats 6 | . . . . 6 Traps | -11 -10 -9 -9 -8 ------- Run | Jun Mat Mat Min Mat Traps Triggered . | . . . . . Indirectly . | . . . . . Trap Hack Attempts . | . . . . . Triggered . | . . . . . Disarmed . | . . . . . Reprogrammed . | . . . . . Reused . | . . . . . Traps Extracted . | . . . . . Installed . | . . . . . Triggered . | . . . . . Machines | -11 -10 -9 -9 -8 ---------- Run | Jun Mat Mat Min Mat Machines Disabled . | . . . . . Max in Single Turn . | . . . . . Machines Repaired . | . . . . . Machines Sabotaged . | . . . . . Overloaded Fab Kills . | . . . . . Hacking | -11 -10 -9 -9 -8 --------- Run | Jun Mat Mat Min Mat Machines Accessed 7 | . 2 1 . 4 Terminals 6 | . 2 . . 4 Fabricators . | . . . . . Repair Stations 1 | . . 1 . . Recycling Units . | . . . . . Scanalyzers . | . . . . . Garrison Access . | . . . . . Total Hacks 21 | . 5 4 . 12 Successful 13 | . 2 4 . 7 Failed 8 | . 3 . . 5 Catastrophic 2 | . 1 . . 1 Database Lockouts . | . . . . . Manual 5 | . 4 . . 1 Terminals 17 | . 5 . . 12 Fabricators . | . . . . . Repair Stations 4 | . . 4 . . Recycling Units . | . . . . . Scanalyzers . | . . . . . Garrison Access . | . . . . . Terminal Hacks 9 | . 2 . . 7 Record 3 | . . . . 3 Branch Access Points 1 | . 1 . . . Locate Traps 2 | . . . . 2 Zone Layout 3 | . 1 . . 2 Fabricator Hacks . | . . . . . Repair Station Hacks 4 | . . 4 . . Scan Component 2 | . . 2 . . Repair 2 | . . 2 . . Recycling Unit Hacks . | . . . . . Scanalyzer . | . . . . . Garrison Access Hacks . | . . . . . Unauthorized Hacks . | . . . . . Terminals . | . . . . . Fabricators . | . . . . . Repair Stations . | . . . . . Recycling Units . | . . . . . Scanalyzers . | . . . . . Garrison Access . | . . . . . Data Cores Recovered . | . . . . . Used . | . . . . . Hacking Detections 6 | . 2 . . 4 Full Trace Events 1 | . . . . 1 Feedback Events . | . . . . . Feedback Blocked . | . . . . . Robot Schematics Acquired . | . . . . . Robots Built . | . . . . . Authchips . | . . . . . Time . | . . . . . Total Robot Build Rating . | . . . . . Part Schematics Acquired . | . . . . . Parts Built . | . . . . . Authchips . | . . . . . Time . | . . . . . Total Part Build Rating . | . . . . . Parts Repaired 2 | . . 2 . . Time 52 | . . 52 . . Parts Recycled . | . . . . . Recycled Matter . | . . . . . Retrieved Matter . | . . . . . Retrieved Components . | . . . . . Parts Scanalyzed . | . . . . . Part Schematics Acquired . | . . . . . Parts Damaged . | . . . . . Bothacking | -11 -10 -9 -9 -8 ------------ Run | Jun Mat Mat Min Mat Used RIF Installer . | . . . . . Robots Hacked . | . . . . . Non-combat . | . . . . . Combat . | . . . . . Robot Hacks Applied . | . . . . . Relay Couplers Released . | . . . . . Fabnet Peak Effective % . | . . . . . Robots Rewired . | . . . . . Allies Hacked . | . . . . . Hacks Repelled . | . . . . . Allies | -11 -10 -9 -9 -8 -------- Run | Jun Mat Mat Min Mat Total Allies . | . . . . . Largest Group . | . . . . . Highest-Rated Group . | . . . . . Highest-Rated Ally . | . . . . . Total Orders . | . . . . . Ally Attacks . | . . . . . Total Damage . | . . . . . Kills . | . . . . . Allies Corrupted . | . . . . . Allies Melted . | . . . . . Intel | -11 -10 -9 -9 -8 ------- Run | Jun Mat Mat Min Mat Robot Analysis Total . | . . . . . Derelict Logs Recovered . | . . . . . Drone Launches . | . . . . . Drone Recoveries . | . . . . . Exploration | -11 -10 -9 -9 -8 ------------- Run | Jun Mat Mat Min Mat Turns Passed 870 | 128 126 243 122 251 Spaces Moved 459 | 79 99 71 49 161 Core 37 | 5 . . . 32 Treads . | . . . . . Legs 328 | 74 99 71 49 35 Wheels . | . . . . . Hover . | . . . . . Flight 94 | . . . . 94 Fastest Speed 41 | 50 120 120 190 41 Average Speed 112 | 115 120 133 190 72 Slowest Speed 250 | 120 120 190 190 250 Overloaded Moves . | . . . . . Propulsion Burnouts . | . . . . . Robots Hopped . | . . . . . Cave-ins Triggered . | . . . . . Exploration Rate (%) 13 | 5 25 10 11 18 Regions Visited 4 Branch Regions 1 Pre-discovered Areas . | . . . . . Known Exits Taken . | . . . . . Unknown Exits Taken 4 | 1 1 1 1 . Scrap Searched . | . . . . . Spaces Dug . | . . . . . Terrain Destroyed 2 | 2 . . . . Melee . | . . . . . Projectile . | . . . . . AOE 2 | 2 . . . . Terrain Rammed . | . . . . . Walls Destroyed . | . . . . . Machines Disabled . | . . . . . Actions | -11 -10 -9 -9 -8 --------- Run | Jun Mat Mat Min Mat Total 732 | 106 102 216 66 242 Wait 152 | . 1 128 5 18 Move 455 | 78 98 70 48 161 Hop . | . . . . . Pick Up 31 | 13 . 9 2 7 Fast Attach 8 | . . 1 . 7 Attach 18 | 6 1 4 . 7 Detach . | . . . . . Swap 6 | . . 1 1 4 Drop 9 | . . 1 3 5 Fire 26 | 9 2 2 7 6 Melee 26 | . . . . 26 Ram 1 | . . . . 1 Kick . | . . . . . Crush . | . . . . . Escape Stasis . | . . . . . Rewire . | . . . . . Trap . | . . . . . Miscellaneous . | . . . . . Route ------- -11/Junkyard -10/Materials (discovered 2 exits: *Mat / Min) -9/Materials -9/Mines -8/Materials History --------- Turn | Location | Event 8 | -11/Junkyard | Discovered new exit (range 16) 129 | -11/Junkyard | Entered Materials 225 | -10/Materials | Identified exit to Mines 239 | -10/Materials | Discovered new exit (range 14) 255 | -10/Materials | Entered another Materials area 255 | -9/Materials | Evolved 2 slots: Propulsion x1, Utility x1 303 | -9/Materials | Repaired Seismic Detector 325 | -9/Materials | Build established: Mutant 331 | -9/Materials | Repaired Ion Engine 458 | -9/Materials | Discovered new exit (range 15) 498 | -9/Materials | Entered Mines 575 | -9/Mines | Discovered new exit (range 13) 620 | -9/Mines | Entered Materials 620 | -8/Materials | Evolved 2 slots: Propulsion x2 806 | -8/Materials | Core integrity fell below 50% 809 | -8/Materials | Build established: Scavenger-Mutant 839 | -8/Materials | Released all parts (3) 842 | -8/Materials | Core integrity fell below 20% 865 | -8/Materials | Lost 12 parts (3p7n2u) 871 | -8/Materials | Destroyed by G-47 Trooper with Particle Gun Last Messages --------------- 00811_ B-36 Bruiser destroyed. 00814_ System corrupted: Component data lost. 00815_ Aluminum Leg destroyed. 00817_ S-10 Pest destroyed. 00830_ System corrupted: Matter fused (-8). 00832_ Ion Engine destroyed. 00834_ Weight Redist. System destroyed. 00839_ Released Med. Storage Unit. 00839_ Released Katana. 00839_ Released Aluminum Leg. 00839_ Slammed into H-55 Commando. 00841_ Slug penetrates Wall. 00842_ O-16 Technician: "IFF HANDSHAKE FAILED. SECURING TERMINAL." 00853_ ALERT: Hostiles spotted, dispatching reinforcements to Terminal M007. 00853_ Acquired Imp. Shield Generator. 00856_ System corrupted: Energy discharge (-20). 00856_ Acquired Plasma Cannon. 00860_ Acquired Gatling Laser. 00867_ Slug penetrates Wall. Map ----- +----------------------------------------------------+ | ?????????????????????????????????????????????????? | | ?????????????????????????????????????????????????? | | ?????????????????????????????????????????????????? | | ?????????????????????????????????????????????????? | | ?????????????????????????????????????????????????? | | ?????????????????????????????????????????????????? | | ?????????????????????????????????????????????????? | | ?????????????????????????????????????????????????? | | ????????????????????????????##+#######???????????? | | ???????????????????????????? #???????????? | | ??????????????????????????+ #???????????? | | ??????????????????????????? ! T #???????????? | | ???????????????????????????# #???????????? | | ???????????????????????????# #???????????? | | ???????????????????????????# """ #???????????? | | ??????????????????????###### """ #######+##### | | ?????????????????????? """ | | ?????????????????????? | | ?????????????????????? | | ?????????????????????????????##### ########### | | ?????????????????????????????????# #?????????# | | ?????????????????????????????????# #?????????# | | ???????????????????###############h #?????????#/] | | ???????????????????# g #?????????#!! | | ???????????????????+ w g #?????????#=! | | ???????????????????# @ g #?????????# | | ???????????????????#+##+### #####?????????### | | ??????????????????????????# #???????????????? | | ??????????????????????????#[ ] !#???????????????? | | ??????????????????????????#[[]]!!#???????????????? | | ??????????????????????????########?????????????### | | ???????????????????????????????????????????????# | | ???????????????????????????????????????????????#* | | ???????????????????????????????????????????????# | | ???????????????????????????????????????????????# | | ???????????????????????????????????????????????# | | ???????????????????????????????????????????????# | | ???????????????????????????????????????????????### | | ???????????????????????????????????????????????# | | ???????????????????????????????????????????????# | | ???????????????????????????????????????????????# " | | ???????????????????????????????????????????????# " | | ???????????????????????????????????????????????# " | | ???????????????????????????????????????????????# | | ???????????????????????????????????????????????### | | ?????????????????????????????????????????????????? | | ?????????????????????????????????????????????????? | | ?????????????????????????????????????????????????? | | ?????????????????????????????????????????????????? | | ?????????????????????????????????????????????????? | +----------------------------------------------------+ Best States ------------- Heat Dissipation 31 Energy Generation 14 Energy Capacity 250 Matter Stores 300 Matter Capacity 300 Sight Range 16 Terrain Scan Range 16 Terrain Scan Density 10 Additional Mass Support 6 Evasion (%) 61 Item Schematics ----------------- None Robot Schematics ------------------ None Fabricated ------------ Nothing Alien Tech Used ----------------- None Achievements -------------- None Challenges ------------ None Game ------ Seed ImpulseDisruptorMallet Manual? 0 Play Time 00:18:56 Cumulative 41.1 hours Start 2023.07.07 @ 14:58:23 End 2023.07.07 @ 15:32:20 Sessions 1 Manual Loads 0 Difficulty Rogue Special Mode None Game No. 55 Rogue 55 Adventurer 0 Explorer 0 Win Type - Total 0 Types 0/0/0/0/0/0/0/0/0 Lore% 16 Gallery% 29 Achievement% 21 Wizard Run 0 Options --------- ASCII 0 Keyboard 0 Movement Mouse Keybinds 0 Fullscreen 1 Font 24/Smallcaps Map View 76x50 Tactical HUD 1 Map Filters NONE Filters NONE Steam 1 RUN: 39854f48-aff6-4b68-9a59-e8c483aa1905